fUSD/lending_fUSD_20250505
["ID","MTS","AMOUNT","RATE_DAILY","PERIOD"]
[359947081,1746443454315,-2454.19,0.00019999,2]
[359947082,1746443454325,-2454.19,0.00019999,2]
[359947083,1746443454334,-2454.19,0.00019999,2]
[359947084,1746443454348,-2454.19,0.00019999,2]
[359947085,1746443454358,-2454.19,0.00019999,2]
[359947086,1746443454368,-450.0,0.00019999,2]
[359947087,1746443454378,-2454.19,0.00019999,2]
[359947088,1746443454389,-450.0,0.00019999,2]
[359947089,1746443454399,-450.0,0.00019999,2]
[359947090,1746443454408,-2454.19,0.00019999,2]
[359947091,1746443454417,-2454.19,0.00019999,2]
[359947092,1746443454427,-2454.19,0.00019999,2]
[359947093,1746443454436,-2454.19,0.00019999,2]
[359947094,1746443454447,-2454.19,0.00019999,2]
[359947095,1746443454456,-2454.19,0.00019999,2]
[359947096,1746443454466,-2454.19,0.00019999,2]
[359947097,1746443454475,-2454.19,0.00019999,2]
[359947098,1746443454485,-450.0,0.00019999,2]
[359947099,1746443454495,-2454.19,0.00019999,2]
[359947100,1746443454505,-450.0,0.00019999,2]
[359947101,1746443454514,-2454.19,0.00019999,2]
[359947102,1746443454523,-450.0,0.00019999,2]
[359947103,1746443454533,-450.0,0.00019999,2]
[359947104,1746443454543,-450.0,0.00019999,2]
[359947105,1746443454552,-2454.19,0.00019999,2]
[359947106,1746443454562,-450.0,0.00019999,2]
[359947107,1746443454571,-450.0,0.00019999,2]
[359947108,1746443454581,-2454.19,0.00019999,2]
[359947109,1746443454591,-450.0,0.00019999,2]
[359947110,1746443454600,-450.0,0.00019999,2]
[359947111,1746443454610,-450.0,0.00019999,2]
[359947112,1746443454620,-450.0,0.00019999,2]
[359947113,1746443454630,-2454.19,0.00019999,2]
[359947114,1746443454639,-450.0,0.00019999,2]
[359947115,1746443454649,-450.0,0.00019999,2]
[359947116,1746443454659,-572.6,0.00019999,2]
[359947117,1746443454668,-577.63,0.00019999,2]
[359947118,1746443454677,-2454.19,0.00019999,2]
[359947119,1746443454687,-450.0,0.00019999,2]
[359947120,1746443454696,-450.0,0.00019999,2]
[359947121,1746443454706,-2454.19,0.00019999,2]
[359947122,1746443454716,-450.0,0.00019999,2]
[359947123,1746443454726,-450.0,0.00019999,2]
[359947124,1746443454736,-2454.19,0.00019999,2]
[359947125,1746443454746,-450.0,0.00019999,2]
[359947126,1746443454756,-450.0,0.00019999,2]
[359947127,1746443454765,-2454.31,0.00019999,2]
[359947128,1746443454775,-450.0,0.00019999,2]
[359947129,1746443454785,-450.0,0.00019999,2]
[359947130,1746443454794,-450.0,0.00019999,2]
[359947131,1746443454803,-450.0,0.00019999,2]
[359947132,1746443454813,-450.0,0.00019999,2]
[359947133,1746443454823,-450.0,0.00019999,2]
[359947134,1746443454832,-450.0,0.00019999,2]
[359947135,1746443454842,-271.05,0.00019999,2]
[359947136,1746443454852,-450.0,0.00019999,2]
[359947137,1746443454861,-555.04,0.00019999,2]
[359947138,1746443454871,-762.0,0.0002,2]
[359947139,1746443454881,-214.1377701,0.0002,2]
[359947140,1746443454892,-182986.52666743,0.0002,2]
[359947141,1746443454901,-256810.16527104,0.0002,2]
[359947142,1746443454911,-3766.64549054,0.0002,2]
[359947143,1746443454921,-190269.5996044,0.0002,2]
[359947144,1746443454931,-206.07216179,0.0002,2]
[359947145,1746443454942,-1072849.20718326,0.0002,2]
[359947146,1746443459116,-0.00410222,0.00019996,2]
[359947147,1746443467064,-0.00059875,0.00019899,2]
[359947148,1746443467250,-449.99940125,0.00019899,2]
[359947149,1746443467259,-450.0,0.00019899,2]
[359947150,1746443467269,-450.0,0.00019994,2]
[359947151,1746443467278,-450.0,0.00019995,2]
[359947152,1746443467287,-500.0,0.00019995,2]
[359947153,1746443467296,-340.8432686,0.00019995,2]
[359947154,1746443467312,-109.1567314,0.00019995,2]
[359947155,1746443467321,-1965.79589778,0.00019996,2]
[359947156,1746443467330,-450.0,0.00019996,2]
[359947157,1746443467342,-450.0,0.00019996,2]
[359947158,1746443467353,-450.0,0.00019998,2]
[359947159,1746443467365,-1965.8,0.00019999,2]
[359947160,1746443467374,-1965.8,0.00019999,2]
[359947161,1746443467384,-1965.8,0.00019999,2]
[359947162,1746443467394,-1965.8,0.00019999,2]
[359947163,1746443467403,-1965.8,0.00019999,2]
[359947164,1746443467413,-450.0,0.00019999,2]
[359947165,1746443467423,-1965.8,0.00019999,2]
[359947166,1746443467433,-1965.8,0.00019999,2]
[359947167,1746443467442,-450.0,0.00019999,2]
[359947168,1746443467451,-1965.8,0.00019999,2]
[359947169,1746443467460,-450.0,0.00019999,2]
[359947170,1746443467469,-1965.8,0.00019999,2]
[359947171,1746443467478,-450.0,0.00019999,2]
[359947172,1746443467487,-450.0,0.00019999,2]
[359947173,1746443467496,-450.0,0.00019999,2]
[359947174,1746443467507,-273445.86086012,0.0002,2]
[359947175,1746443467518,-999.14301235,0.0002,2]
[359947176,1746443467528,-11012.14194646,0.0002,2]
[359947177,1746443467539,-10237.35,0.0002,2]
[359947178,1746443467550,-17235.8,0.0002,2]
[359947179,1746443467562,-6164.64,0.0002,2]
[359947180,1746443467578,-1965.8,0.00019999,2]
[359947181,1746443467587,-2764.2,0.0002,2]
[359947182,1746443467599,-8668.8,0.0002,2]
[359947183,1746443467617,-261.81012156,0.00019994,2]
[359947184,1746443467634,-188.18987844,0.00019994,2]
[359947185,1746443467643,-450.0,0.00019999,2]
[359947186,1746443467652,-8765.66011384,0.0002,2]
[359947187,1746443467663,-2781.45180001,0.0002,2]
[359947188,1746443495836,192.936604,0.00018762,2]
[359947189,1746443541435,160.0,0.0003,32]
[359947190,1746443619925,319.12,0.00017025,2]
[359947191,1746443620180,319.12,0.00019288,2]
[359947192,1746443646220,519.73,0.0003,30]
[359947193,1746443751391,3000.0,0.00027397,120]
[359947194,1746443751645,3000.0,0.00027397,120]
[359947195,1746443752058,3000.0,0.00027397,120]
[359947196,1746443752374,3000.0,0.00027397,120]
[359947197,1746443752616,675.53,0.00027397,120]
[359947198,1746443840531,160.0,0.0003,32]
[359947203,1746443930682,1091.42368351,0.00018894,2]
[359947204,1746443930703,10000.0,0.00018894,2]
[359947205,1746443930723,10000.0,0.00018894,2]
[359947206,1746443930745,1869.04631649,0.00018894,2]
[359947207,1746443939531,300.0,0.0003,30]
[359947208,1746443985204,150.42,0.0003,30]
[359947209,1746444061211,250.0,0.00017,2]
[359947210,1746444062285,300.0,0.00019,2]
[359947211,1746444139737,160.0,0.0003,32]
[359947212,1746444166553,7580.95368351,0.00018851,2]
[359947213,1746444166575,10000.0,0.00018851,2]
[359947214,1746444166599,5885.12631649,0.00018851,2]
[359947215,1746444255158,-443.62028751,0.000196,2]
[359947216,1746444259785,-295.72,0.000196,2]
[359947217,1746444264924,1000.0,0.00018833,2]
[359947218,1746444266108,-283.38891236,0.000196,2]
[359947219,1746444270909,-247.32338764,0.000196,2]
[359947220,1746444274299,-129.94741249,0.000196,2]
[359947222,1746444310659,377.37825761,0.000154,2]
[359947228,1746444440023,160.0,0.0003,32]
[359947238,1746444562072,291.65,0.00018812,2]
[359947239,1746444571593,-160.08,0.00019515,2]
[359947240,1746444576484,-161.0162721,0.00019515,2]
[359947241,1746444584805,-244.08404575,0.00019515,2]
[359947242,1746444587302,-178.11747557,0.00019515,2]
[359947243,1746444590482,500.0,0.00018811,2]
[359947244,1746444591126,-56.11529781,0.00019515,2]
[359947247,1746444629099,1945.8454259,0.00019178,2]
[359947248,1746444629121,1322.6345741,0.00019178,2]
[359947261,1746444631705,-337.45423544,0.00019673,2]
[359947262,1746444631823,-357.36689531,0.00019673,2]
[359947263,1746444631834,-238.80966566,0.00019673,2]
[359947264,1746444631844,-200.0,0.00019677,2]
[359947265,1746444631854,-933.63079641,0.00019686,2]
[359947266,1746444631863,-200.0,0.00019698,2]
[359947267,1746444631873,-151.0,0.00019699,2]
[359947268,1746444631882,-2500.0,0.0001974,2]
[359947269,1746444631892,-149.49618691,0.00019747,2]
[359947270,1746444631904,-1623.26391309,0.00019747,2]
[359947271,1746444631913,-3548.15343232,0.0001975,2]
[359947272,1746444631923,-1200.0,0.00019765,2]
[359947273,1746444631934,-799.41309124,0.00019766,2]
[359947274,1746444631943,-300.0,0.00019771,2]
[359947275,1746444631952,-300.0,0.00019772,2]
[359947276,1746444631962,-12500.0,0.00019786,2]
[359947277,1746444631971,-1436.32230775,0.00019789,2]
[359947278,1746444631980,-4859.4472456,0.00019794,2]
[359947281,1746444632164,-441.163,0.00019794,2]
[359947319,1746444637851,-262.94520001,0.00019794,2]
[359947320,1746444637864,-336.527,0.00019794,2]
[359947321,1746444637876,-4812.05,0.00019794,2]
[359947322,1746444637888,-1787.86755439,0.00019794,2]
[359947323,1746444637897,-271.21077386,0.00019795,2]
[359947324,1746444637907,-227.19042078,0.00019796,2]
[359947325,1746444637917,-151.6773449,0.00019799,2]
[359947326,1746444637927,-81.01941137,0.00019799,2]
[359947327,1746444637938,-2985.56946839,0.00019799,2]
[359947328,1746444637950,-8679.91952024,0.00019799,2]
[359947329,1746444637961,-151.0,0.000198,2]
[359947330,1746444637970,-207.4,0.000198,2]
[359947331,1746444637980,-539.49585856,0.000198,2]
[359947332,1746444637990,-10165.28567332,0.00019803,2]
[359947333,1746444638012,-829.18939595,0.00019803,2]
[359947334,1746444638068,-435.37322439,0.00019803,2]
[359947335,1746444638176,-1070.15170634,0.00019803,2]
[359947336,1746444638186,-271.21077377,0.00019807,2]
[359947337,1746444638195,-227.19042069,0.00019808,2]
[359947338,1746444638205,-12500.0,0.00019812,2]
[359947339,1746444638215,-271.21077377,0.00019818,2]
[359947340,1746444638224,-227.19042069,0.00019819,2]
[359947341,1746444638234,-102016.778861,0.0001982,2]
[359947342,1746444638243,-12500.0,0.00019821,2]
[359947343,1746444638252,-500.0,0.00019828,2]
[359947344,1746444638261,-500.0,0.00019828,2]
[359947345,1746444638271,-500.0,0.00019828,2]
[359947346,1746444638280,-500.0,0.00019828,2]
[359947347,1746444638290,-500.0,0.00019828,2]
[359947348,1746444638299,-500.0,0.00019828,2]
[359947349,1746444638308,-500.0,0.00019828,2]
[359947350,1746444638318,-500.0,0.00019828,2]
[359947351,1746444638327,-500.0,0.00019828,2]
[359947352,1746444638336,-500.0,0.00019828,2]
[359947354,1746444638345,-500.0,0.00019828,2]
[359947356,1746444638354,-500.0,0.00019828,2]
[359947358,1746444638364,-500.0,0.00019828,2]
[359947360,1746444638373,-500.0,0.00019828,2]
[359947362,1746444638382,-500.0,0.00019828,2]
[359947364,1746444638391,-500.0,0.00019828,2]
[359947366,1746444638400,-500.0,0.00019828,2]
[359947368,1746444638409,-500.0,0.00019828,2]
[359947370,1746444638418,-500.0,0.00019828,2]
[359947372,1746444638427,-500.0,0.00019828,2]
[359947374,1746444638436,-500.0,0.00019828,2]
[359947376,1746444638445,-500.0,0.00019828,2]
[359947378,1746444638454,-500.0,0.00019828,2]
[359947380,1746444638463,-500.0,0.00019828,2]
[359947382,1746444638471,-500.0,0.00019828,2]
[359947385,1746444638480,-500.0,0.00019828,2]
[359947388,1746444638490,-164.80011872,0.00019828,2]
[359947391,1746444638499,-500.0,0.00019828,2]
[359947392,1746444638507,-500.0,0.00019828,2]
[359947394,1746444638517,-500.0,0.00019828,2]
[359947396,1746444638526,-500.0,0.00019828,2]
[359947399,1746444638536,-500.0,0.00019828,2]
[359947402,1746444638545,-500.0,0.00019828,2]
[359947405,1746444638555,-500.0,0.00019828,2]
[359947407,1746444638564,-500.0,0.00019828,2]
[359947409,1746444638573,-500.0,0.00019828,2]
[359947411,1746444638582,-500.0,0.00019828,2]
[359947413,1746444638592,-500.0,0.00019828,2]
[359947415,1746444638601,-500.0,0.00019828,2]
[359947417,1746444638610,-500.0,0.00019828,2]
[359947419,1746444638620,-500.0,0.00019828,2]
[359947421,1746444638630,-500.0,0.00019828,2]
[359947423,1746444638639,-500.0,0.00019828,2]
[359947425,1746444638648,-500.0,0.00019828,2]
[359947427,1746444638657,-500.0,0.00019828,2]
[359947429,1746444638667,-500.0,0.00019828,2]
[359947431,1746444638676,-500.0,0.00019828,2]
[359947433,1746444638685,-500.0,0.00019828,2]
[359947435,1746444638694,-500.0,0.00019828,2]
[359947437,1746444638703,-500.0,0.00019828,2]
[359947439,1746444638712,-500.0,0.00019828,2]
[359947441,1746444638722,-500.0,0.00019828,2]
[359947443,1746444638731,-500.0,0.00019828,2]
[359947445,1746444638741,-450.0,0.00019828,2]
[359947447,1746444638750,-500.0,0.00019828,2]
[359947449,1746444638760,-500.0,0.00019828,2]
[359947451,1746444638771,-500.0,0.00019828,2]
[359947453,1746444638782,-12.52619324,0.00019828,2]
[359947498,1746444639821,-378.554176,0.00019828,2]
[359947499,1746444640174,-108.91963076,0.00019828,2]
[359947500,1746444640183,-105.03832707,0.00019828,2]
[359947501,1746444640246,-394.96167293,0.00019828,2]
[359947502,1746444640257,-500.0,0.00019828,2]
[359947503,1746444640266,-500.0,0.00019828,2]
[359947504,1746444640275,-500.0,0.00019828,2]
[359947505,1746444640286,-500.0,0.00019828,2]
[359947506,1746444640295,-500.0,0.00019828,2]
[359947507,1746444640304,-12500.0,0.0001983,2]
[359947508,1746444640314,-271.21077377,0.0001983,2]
[359947509,1746444640323,-227.19042069,0.00019831,2]
[359947510,1746444640332,-862.76,0.00019837,2]
[359947511,1746444640341,-3361.00264445,0.00019838,2]
[359947512,1746444640353,-472.885,0.00019838,2]
[359947522,1746444642837,-2632.36225994,0.00019838,2]
[359947523,1746444642848,-715.88500376,0.00019838,2]
[359947524,1746444642892,-1924.6,0.00019838,2]
[359947525,1746444642904,-888.28561574,0.00019838,2]
[359947526,1746444642951,-2504.97947611,0.00019838,2]
[359947527,1746444642962,-2000.0,0.0001984,2]
[359947528,1746444642971,-200.0,0.0001984,2]
[359947529,1746444642980,-2667.42522171,0.0001984,2]
[359947548,1746444646051,-11359.62908167,0.0001984,2]
[359947566,1746444647162,155.33,0.00018895,2]
[359947567,1746444712287,422.16,0.00016965,2]
[359947568,1746444712498,422.16,0.00019229,2]
[359947569,1746444726328,250.0,0.00018874,2]
[359947570,1746444739045,160.0,0.0003,32]
[359947571,1746444830711,500.0,0.00030137,120]
[359947572,1746444841091,500.0,0.00030137,120]
[359947573,1746444880600,7427.7154259,0.00018838,2]
[359947574,1746444880628,867.5645741,0.00018838,2]
[359947575,1746444882060,168.83,0.00018838,2]
[359947576,1746444892400,500.0,0.00027945,30]
[359947577,1746444892643,500.0,0.00029315,35]
[359947579,1746444936450,500.0,0.00027945,30]
[359947580,1746444936687,500.0,0.00029315,30]
[359947581,1746445044712,160.0,0.0003,32]
[359947582,1746445125898,166.68,0.00019405,2]
[359947583,1746445145820,200.0,0.00018841,2]
[359947589,1746445265265,8025.55,0.00018824,2]
[359947590,1746445327550,571.3754259,0.00018815,2]
[359947591,1746445327570,428.6245741,0.00018815,2]
[359947592,1746445339453,160.0,0.0003,32]
[359947594,1746445451470,-270.76741447,0.000196,2]
[359947595,1746445546768,500.0,0.00027945,30]
[359947596,1746445547006,500.0,0.00029315,35]
[359947597,1746445590177,500.0,0.00027945,30]
[359947598,1746445590430,500.0,0.00029315,30]
[359947599,1746445638689,160.0,0.0003,32]
[359948455,1746445822165,729.23258553,0.000195,2]
[359948459,1746445832225,-250.0,0.00019625,2]
[359948461,1746445832235,-200.0,0.0001965,2]
[359948463,1746445832245,-1406.34571312,0.00019682,2]
[359948466,1746445832256,-1505.11732357,0.00019682,2]
[359948468,1746445832273,-899.87800001,0.00019682,2]
[359948471,1746445832294,-330.39424145,0.00019682,2]
[359948473,1746445832303,-143.07875855,0.000197,2]
[359948490,1746445837952,-7.92124145,0.000197,2]
[359948491,1746445837963,-1200.0,0.00019705,2]
[359948492,1746445837972,-300.0,0.00019705,2]
[359948493,1746445837982,-4141.73527815,0.00019706,2]
[359948494,1746445837991,-300.0,0.00019728,2]
[359948495,1746445838000,-4305.7459,0.00019729,2]
[359948496,1746445838010,-4141.73527815,0.0001973,2]
[359948497,1746445838019,-1995.419,0.00019739,2]
[359948498,1746445838028,-300.0,0.00019739,2]
[359948499,1746445838038,-213.29784495,0.0001974,2]
[359948500,1746445838048,-206.98286418,0.0001974,2]
[359948501,1746445838058,-1000.0,0.0001974,2]
[359948502,1746445838069,-266.58478297,0.0001974,2]
[359948503,1746445838078,-162.72646428,0.0001974,2]
[359948504,1746445838087,-183.2247,0.00019747,2]
[359948505,1746445838097,-3813.73253904,0.00019747,2]
[359948506,1746445838165,-377.8727126,0.00019747,2]
[359948507,1746445838219,-457.78,0.00019747,2]
[359948701,1746445840172,-25206.72114836,0.00019747,2]
[359948703,1746445840182,-4141.73527815,0.00019754,2]
[359948724,1746445840349,-323.5865,0.00019756,2]
[359948726,1746445840360,-266.58478295,0.00019758,2]
[359948728,1746445840370,-162.72646426,0.00019758,2]
[359948730,1746445840379,-207.4,0.00019759,2]
[359948732,1746445840389,-500.0,0.0001977,2]
[359948734,1746445840399,-303.0345973,0.0001977,2]
[359948736,1746445840408,-500.0,0.0001977,2]
[359948738,1746445840417,-637.41441247,0.0001977,2]
[359948740,1746445840427,-500.0,0.0001977,2]
[359948742,1746445840438,-500.0,0.0001977,2]
[359948744,1746445840447,-500.0,0.0001977,2]
[359948746,1746445840456,-500.0,0.0001977,2]
[359948748,1746445840465,-500.0,0.0001977,2]
[359948750,1746445840474,-500.0,0.0001977,2]
[359948752,1746445840483,-500.0,0.0001977,2]
[359948754,1746445840492,-500.0,0.0001977,2]
[359948756,1746445840501,-500.0,0.0001977,2]
[359948758,1746445840510,-500.0,0.0001977,2]
[359948760,1746445840519,-500.0,0.0001977,2]
[359948762,1746445840528,-635.37855836,0.0001977,2]
[359948764,1746445840537,-500.0,0.0001977,2]
[359948766,1746445840547,-500.0,0.0001977,2]
[359948768,1746445840556,-500.0,0.0001977,2]
[359948769,1746445840566,-500.0,0.0001977,2]
[359948771,1746445840576,-500.0,0.0001977,2]
[359948773,1746445840585,-500.0,0.0001977,2]
[359948775,1746445840594,-500.0,0.0001977,2]
[359948777,1746445840604,-500.0,0.0001977,2]
[359948779,1746445840613,-500.0,0.0001977,2]
[359948781,1746445840623,-500.0,0.0001977,2]
[359948783,1746445840632,-500.0,0.0001977,2]
[359948785,1746445840643,-500.0,0.0001977,2]
[359948787,1746445840652,-500.0,0.0001977,2]
[359948789,1746445840662,-500.0,0.0001977,2]
[359948791,1746445840671,-500.0,0.0001977,2]
[359948793,1746445840681,-500.0,0.0001977,2]
[359948795,1746445840690,-500.0,0.0001977,2]
[359948797,1746445840700,-500.0,0.0001977,2]
[359948799,1746445840709,-500.0,0.0001977,2]
[359948801,1746445840719,-500.0,0.0001977,2]
[359948803,1746445840728,-500.0,0.0001977,2]
[359948805,1746445840738,-500.0,0.0001977,2]
[359948806,1746445840748,-500.0,0.0001977,2]
[359948807,1746445840758,-500.0,0.0001977,2]
[359948808,1746445840767,-500.0,0.0001977,2]
[359948809,1746445840776,-500.0,0.0001977,2]
[359948810,1746445840785,-500.0,0.0001977,2]
[359948811,1746445840794,-500.0,0.0001977,2]
[359948812,1746445840804,-500.0,0.0001977,2]
[359948813,1746445840813,-500.0,0.0001977,2]
[359948814,1746445840822,-500.0,0.0001977,2]
[359948815,1746445840831,-500.0,0.0001977,2]
[359948816,1746445840840,-500.0,0.0001977,2]
[359948817,1746445840849,-500.0,0.0001977,2]
[359948818,1746445840859,-150.99,0.00019771,2]
[359948819,1746445840868,-999.99,0.00019771,2]
[359948820,1746445840879,-1971.0,0.00019771,5]
[359948821,1746445840888,-1539.07,0.00019771,2]
[359948823,1746445840898,-9999.99,0.00019771,2]
[359948825,1746445840907,-9353.24,0.00019771,2]
[359948827,1746445840916,-6450.01,0.00019771,2]
[359948829,1746445840926,-9999.99,0.00019771,2]
[359948831,1746445840935,-1148.17,0.00019771,2]
[359948833,1746445840944,-150.99,0.00019771,2]
[359948835,1746445840954,-299.99,0.00019771,7]
[359948837,1746445840963,-9999.99,0.00019771,2]
[359948839,1746445840972,-4007.67,0.00019771,2]
[359948841,1746445840982,-450.3073,0.00019772,2]
[359948843,1746445840991,-165.04489109,0.00019773,2]
[359948845,1746445841000,-266.58478295,0.00019775,2]
[359948847,1746445841010,-162.72646426,0.00019776,2]
[359948849,1746445841023,-4141.73527815,0.00019778,2]
[359948851,1746445841032,-973.0,0.00019782,2]
[359948853,1746445841042,-266.58478295,0.00019793,2]
[359948855,1746445841052,-162.72646426,0.00019793,2]
[359948857,1746445841061,-614.1752,0.00019799,2]
[359948859,1746445841071,-151.6773449,0.00019799,2]
[359948861,1746445841080,-4141.73527815,0.00019802,2]
[359948863,1746445841089,-266.58478295,0.00019811,2]
[359948865,1746445841099,-162.72646426,0.00019811,2]
[359948867,1746445841108,-4141.73527815,0.00019826,2]
[359948869,1746445841118,-266.58478295,0.00019828,2]
[359948871,1746445841127,-162.72646426,0.00019829,2]
[359948873,1746445841137,-431.38,0.00019829,2]
[359948875,1746445841146,-431.38,0.00019829,2]
[359948876,1746445841155,-282164.38618275,0.00019836,2]
[359948878,1746445841164,-450.0,0.00019838,2]
[359948880,1746445841173,-251.00218878,0.00019838,2]
[359948882,1746445841183,-450.0,0.00019838,2]
[359948884,1746445841192,-450.0,0.00019838,2]
[359948886,1746445841201,-450.0,0.00019838,2]
[359948888,1746445841211,-455.91641373,0.00019838,2]
[359948890,1746445841221,-450.0,0.00019838,2]
[359948892,1746445841231,-450.0,0.00019838,2]
[359948894,1746445841240,-450.0,0.00019838,2]
[359948896,1746445841250,-372.56499967,0.00019838,2]
[359948898,1746445841259,-450.0,0.00019838,2]
[359948900,1746445841269,-450.0,0.00019838,2]
[359948902,1746445841278,-420.30361472,0.00019838,2]
[359948904,1746445841287,-450.0,0.00019838,2]
[359948906,1746445841296,-450.0,0.00019838,2]
[359948908,1746445841307,-450.0,0.00019838,2]
[359948910,1746445841316,-450.0,0.00019838,2]
[359948912,1746445841325,-450.0,0.00019838,2]
[359948914,1746445841335,-483.03789791,0.00019838,2]
[359948916,1746445841345,-450.0,0.00019838,2]
[359948918,1746445841356,-250.0,0.00019838,2]
[359948919,1746445841365,-450.0,0.00019838,2]
[359948921,1746445841374,-450.0,0.00019838,2]
[359948924,1746445841385,-450.0,0.00019838,2]
[359948925,1746445841395,-450.0,0.00019838,2]
[359948927,1746445841404,-450.0,0.00019838,2]
[359948929,1746445841413,-450.0,0.00019838,2]
[359948931,1746445841428,-450.0,0.00019838,2]
[359948933,1746445841438,-215.72966804,0.00019838,2]
[359948935,1746445841447,-450.0,0.00019838,2]
[359948937,1746445841457,-450.0,0.00019838,2]
[359948939,1746445841467,-450.0,0.00019838,2]
[359948941,1746445841476,-450.0,0.00019838,2]
[359948943,1746445841486,-450.0,0.00019838,2]
[359948945,1746445841496,-450.0,0.00019838,2]
[359948947,1746445841507,-492.74654308,0.00019838,2]
[359948949,1746445841517,-450.0,0.00019838,2]
[359948951,1746445841526,-450.0,0.00019838,2]
[359948953,1746445841536,-525.4401336,0.00019838,2]
[359948955,1746445841545,-450.0,0.00019838,2]
[359948957,1746445841554,-450.0,0.00019838,2]
[359948959,1746445841563,-320.68280887,0.00019838,2]
[359948961,1746445841573,-450.0,0.00019838,2]
[359948963,1746445841582,-450.0,0.00019838,2]
[359948965,1746445841591,-450.0,0.00019838,2]
[359948967,1746445841600,-450.0,0.00019838,2]
[359948969,1746445841610,-450.0,0.00019838,2]
[359948971,1746445841620,-500.0,0.00019838,2]
[359948973,1746445841630,-450.0,0.00019838,2]
[359948975,1746445841639,-450.0,0.00019838,2]
[359948977,1746445841648,-450.0,0.00019838,2]
[359948979,1746445841657,-313.55075466,0.00019838,2]
[359948981,1746445841667,-450.0,0.00019838,2]
[359948983,1746445841677,-450.0,0.00019838,2]
[359948985,1746445841686,-450.0,0.00019838,2]
[359948987,1746445841695,-429.17822093,0.00019838,2]
[359948989,1746445841705,-450.0,0.00019838,2]
[359948991,1746445841714,-450.0,0.00019838,2]
[359948993,1746445841723,-450.0,0.00019838,2]
[359948995,1746445841733,-450.0,0.00019838,2]
[359948997,1746445841742,-450.0,0.00019838,2]
[359948999,1746445841751,-450.0,0.00019838,2]
[359949001,1746445841760,-450.0,0.00019838,2]
[359949003,1746445841771,-245.99279119,0.00019838,2]
[359949005,1746445841780,-450.0,0.00019838,2]
[359949007,1746445841789,-450.0,0.00019838,2]
[359949009,1746445841799,-450.0,0.00019838,2]
[359949011,1746445841809,-450.0,0.00019838,2]
[359949013,1746445841818,-450.0,0.00019838,2]
[359949015,1746445841828,-450.0,0.00019838,2]
[359949017,1746445841838,-450.0,0.00019838,2]
[359949019,1746445841847,-500.0,0.00019838,2]
[359949021,1746445841856,-450.0,0.00019838,2]
[359949023,1746445841866,-450.0,0.00019838,2]
[359949025,1746445841875,-450.0,0.00019838,2]
[359949027,1746445841884,-450.0,0.00019838,2]
[359949029,1746445841893,-450.0,0.00019838,2]
[359949031,1746445841903,-450.0,0.00019838,2]
[359949033,1746445841912,-450.0,0.00019838,2]
[359949035,1746445841922,-450.0,0.00019838,2]
[359949037,1746445841931,-450.0,0.00019838,2]
[359949039,1746445841940,-450.0,0.00019838,2]
[359949041,1746445841948,-450.0,0.00019838,2]
[359949043,1746445841958,-450.0,0.00019838,2]
[359949045,1746445841967,-450.0,0.00019838,2]
[359949047,1746445841976,-450.0,0.00019838,2]
[359949049,1746445841985,-450.0,0.00019838,2]